[Event "*** Titled Tuesday Blitz"]
[Site "Chess.com"]
[Date "2020.03.03"]
[Round "9"]
[White "Martins-BR"]
[Black "Resignify"]
[Result "0-1"]
[WhiteElo "2293"]
[BlackElo "2216"]
[TimeControl "180+1"]
[EndTime "14:46:58 PST"]
[Termination "Resignify won by resignation"]

1. e4 {[%clk 0:03:00.9]} 1... d6 {[%clk 0:02:59.6]} 2. d4 {[%clk 0:02:58]} 2...
Nf6 {[%clk 0:02:59.6]} 3. Nc3 {[%clk 0:02:57.3]} 3... g6 {[%clk 0:02:59.6]} 4.
Bg5 {[%clk 0:02:56.1]} 4... Bg7 {[%clk 0:02:57.5]} 5. Qd2 {[%clk 0:02:56]} 5...
h6 {[%clk 0:02:55.6]} 6. Bh4 {[%clk 0:02:56]} 6... g5 {[%clk 0:02:52.4]} 7. Bg3
{[%clk 0:02:55.7]} 7... Nh5 {[%clk 0:02:50.4]} 8. O-O-O {[%clk 0:02:55.4]} 8...
Nc6 {[%clk 0:02:49.8]} 9. Bb5 {[%clk 0:02:55.2]} 9... Bd7 {[%clk 0:02:47.5]} 10.
Nge2 {[%clk 0:02:52]} 10... a6 {[%clk 0:02:43.5]} 11. Bxc6 {[%clk 0:02:51.1]}
11... bxc6 {[%clk 0:02:40.3]} 12. f3 {[%clk 0:02:49.8]} 12... Nxg3 {[%clk
0:02:29.2]} 13. hxg3 {[%clk 0:02:49.5]} 13... e6 {[%clk 0:02:27.7]} 14. g4
{[%clk 0:02:48.7]} 14... Rb8 {[%clk 0:02:21.6]} 15. Ng3 {[%clk 0:02:45.9]} 15...
Qc8 {[%clk 0:01:30.5]} 16. Nh5 {[%clk 0:02:44.9]} 16... Kf8 {[%clk 0:01:29.4]}
17. Rde1 {[%clk 0:02:22.5]} 17... Qb7 {[%clk 0:01:26.3]} 18. Nd1 {[%clk
0:02:22.2]} 18... Qb4 {[%clk 0:01:17.7]} 19. c3 {[%clk 0:02:17.8]} 19... Qa5
{[%clk 0:01:15.7]} 20. Kb1 {[%clk 0:02:16.5]} 20... c5 {[%clk 0:01:15.9]} 21.
Nxg7 {[%clk 0:02:10.2]} 21... Kxg7 {[%clk 0:01:15.5]} 22. dxc5 {[%clk
0:02:01.8]} 22... Qxc5 {[%clk 0:01:14.3]} 23. Nf2 {[%clk 0:01:48.9]} 23... e5
{[%clk 0:01:02.7]} 24. Nd3 {[%clk 0:01:47.5]} 24... Qa5 {[%clk 0:00:59.9]} 25.
Nb4 {[%clk 0:01:43.5]} 25... Be6 {[%clk 0:00:56.8]} 26. a3 {[%clk 0:01:35.6]}
26... Qb6 {[%clk 0:00:56.2]} 27. Re2 {[%clk 0:01:31]} 27... Bc4 {[%clk
0:00:47.2]} 28. Rf2 {[%clk 0:01:14.5]} 28... a5 {[%clk 0:00:46.2]} 29. Nd5
{[%clk 0:01:12.2]} 29... Qb3 {[%clk 0:00:44.6]} 30. Kc1 {[%clk 0:01:04.9]} 30...
Qa2 {[%clk 0:00:39.3]} 31. Qc2 {[%clk 0:01:04.9]} 31... Rb7 {[%clk 0:00:26.9]}
32. Ne3 {[%clk 0:00:53.9]} 32... Be6 {[%clk 0:00:20.7]} 33. Qb1 {[%clk
0:00:52.5]} 33... Qb3 {[%clk 0:00:18.6]} 34. Qc2 {[%clk 0:00:52.1]} 34... Qb6
{[%clk 0:00:16.8]} 35. Re1 {[%clk 0:00:51.6]} 35... Rhb8 {[%clk 0:00:15.8]} 36.
Rd2 {[%clk 0:00:47.4]} 36... Qc5 {[%clk 0:00:14.5]} 37. Qd3 {[%clk 0:00:43.2]}
37... Rb3 {[%clk 0:00:13.3]} 38. Nd5 {[%clk 0:00:40.6]} 38... c6 {[%clk
0:00:10.8]} 39. Nc7 {[%clk 0:00:38.6]} 39... R8b7 {[%clk 0:00:09.6]} 40. Nxe6+
{[%clk 0:00:37.8]} 40... fxe6 {[%clk 0:00:10.5]} 41. Rc2 {[%clk 0:00:32.8]}
41... d5 {[%clk 0:00:09.3]} 42. exd5 {[%clk 0:00:31.6]} 42... cxd5 {[%clk
0:00:08.7]} 43. Rxe5 {[%clk 0:00:31]} 43... Qg1+ {[%clk 0:00:08.2]} 44. Kd2
{[%clk 0:00:30.6]} 44... Rxb2 {[%clk 0:00:07.1]} 45. Re2 {[%clk 0:00:26.8]}
45... Qc5 {[%clk 0:00:06.3]} 46. Qd4+ {[%clk 0:00:25]} 46... Qxd4+ {[%clk
0:00:05.9]} 47. cxd4 {[%clk 0:00:25.9]} 47... Kf7 {[%clk 0:00:05]} 48. Kd3
{[%clk 0:00:19.4]} 48... R7b3+ {[%clk 0:00:04]} 49. Kd2 {[%clk 0:00:17.1]} 49...
Rxc2+ {[%clk 0:00:03.1]} 50. Kxc2 {[%clk 0:00:18]} 50... Rxa3 {[%clk 0:00:03.3]}
51. Rd2 {[%clk 0:00:17]} 51... Ra2+ {[%clk 0:00:02.6]} 52. Kd3 {[%clk
0:00:16.5]} 52... Rxd2+ {[%clk 0:00:03.5]} 53. Kxd2 {[%clk 0:00:17]} 53... Ke7
{[%clk 0:00:02.9]} 54. Kc3 {[%clk 0:00:17.9]} 54... Kd6 {[%clk 0:00:03.6]} 55.
Kb3 {[%clk 0:00:18.5]} 55... e5 {[%clk 0:00:04.5]} 56. Ka4 {[%clk 0:00:19.2]}
56... exd4 {[%clk 0:00:04.1]} 57. Kxa5 {[%clk 0:00:19.2]} 57... d3 {[%clk
0:00:04.5]} 58. Kb4 {[%clk 0:00:19.9]} 58... d2 {[%clk 0:00:05.4]} 59. Kc3
{[%clk 0:00:20.4]} 59... d1=Q {[%clk 0:00:06.3]} 60. Kb4 {[%clk 0:00:20.8]}
60... Qf1 {[%clk 0:00:07.2]} 0-1

[Event "*** Titled Tuesday Blitz"]
[Site "Chess.com"]
[Date "2020.03.03"]
[Round "9"]
[White "Atanejhad"]
[Black "Lovkov_Roman"]
[Result "1-0"]
[WhiteElo "2599"]
[BlackElo "2675"]
[TimeControl "180+1"]
[EndTime "14:47:03 PST"]
[Termination "Atanejhad won on time"]

1. e4 {[%clk 0:03:00.9]} 1... e5 {[%clk 0:02:59.4]} 2. Nf3 {[%clk 0:03:00.5]}
2... Nc6 {[%clk 0:02:59.9]} 3. Bb5 {[%clk 0:03:01]} 3... Nge7 {[%clk 0:02:57]}
4. O-O {[%clk 0:02:58.5]} 4... g6 {[%clk 0:02:56.3]} 5. d4 {[%clk 0:02:58.4]}
5... exd4 {[%clk 0:02:52]} 6. Nxd4 {[%clk 0:02:59.3]} 6... Bg7 {[%clk
0:02:50.9]} 7. Nxc6 {[%clk 0:02:58.8]} 7... Nxc6 {[%clk 0:02:51.8]} 8. Nc3
{[%clk 0:02:54.5]} 8... O-O {[%clk 0:02:50.8]} 9. Nd5 {[%clk 0:02:54.5]} 9...
Nd4 {[%clk 0:02:45.6]} 10. Bd3 {[%clk 0:02:52.9]} 10... c6 {[%clk 0:02:45.6]}
11. Ne3 {[%clk 0:02:52.4]} 11... d5 {[%clk 0:02:27.9]} 12. exd5 {[%clk 0:02:52]}
12... cxd5 {[%clk 0:02:28.8]} 13. c3 {[%clk 0:02:49.8]} 13... Nc6 {[%clk
0:02:25.1]} 14. Be2 {[%clk 0:02:47.7]} 14... d4 {[%clk 0:02:24.6]} 15. cxd4
{[%clk 0:02:46.3]} 15... Nxd4 {[%clk 0:02:25.5]} 16. Bc4 {[%clk 0:02:46.4]}
16... b5 {[%clk 0:02:14.3]} 17. Bd5 {[%clk 0:02:44.8]} 17... Rb8 {[%clk
0:02:09.3]} 18. Bd2 {[%clk 0:02:42.6]} 18... b4 {[%clk 0:02:06.4]} 19. Rc1
{[%clk 0:02:40.8]} 19... Rb5 {[%clk 0:02:02.6]} 20. Bc4 {[%clk 0:02:24.5]} 20...
Rh5 {[%clk 0:01:36.7]} 21. Bxb4 {[%clk 0:02:08.3]} 21... Qh4 {[%clk 0:01:36.5]}
22. Bd6 {[%clk 0:02:03.4]} 22... Rd8 {[%clk 0:01:17.3]} 23. Bg3 {[%clk 0:02:03]}
23... Qg5 {[%clk 0:01:16.8]} 24. Qa4 {[%clk 0:01:48.2]} 24... Be6 {[%clk
0:00:43]} 25. Bxe6 {[%clk 0:01:22.1]} 25... Ne2+ {[%clk 0:00:42.5]} 26. Kh1
{[%clk 0:01:22.1]} 26... fxe6 {[%clk 0:00:40.1]} 27. Rcd1 {[%clk 0:00:44.4]}
27... Rf8 {[%clk 0:00:39.1]} 28. Qg4 {[%clk 0:00:30.2]} 28... Qxg4 {[%clk
0:00:20]} 29. Nxg4 {[%clk 0:00:29.7]} 29... Ra5 {[%clk 0:00:18.1]} 30. Bd6
{[%clk 0:00:18.9]} 30... Rc8 {[%clk 0:00:15]} 31. Rd2 {[%clk 0:00:16.3]} 31...
Nd4 {[%clk 0:00:12.1]} 32. b4 {[%clk 0:00:16]} 32... Rd5 {[%clk 0:00:11.5]} 33.
Bc5 {[%clk 0:00:15.4]} 33... a5 {[%clk 0:00:04.7]} 34. a3 {[%clk 0:00:15]} 34...
axb4 {[%clk 0:00:04.1]} 35. axb4 {[%clk 0:00:15.9]} 35... Nb3 {[%clk 0:00:03.8]}
36. Rxd5 {[%clk 0:00:16.7]} 36... exd5 {[%clk 0:00:04.7]} 37. Rd1 {[%clk
0:00:16.4]} 37... Nxc5 {[%clk 0:00:04.9]} 38. bxc5 {[%clk 0:00:17.3]} 38... Rxc5
{[%clk 0:00:05.8]} 39. h3 {[%clk 0:00:16.7]} 39... d4 {[%clk 0:00:06]} 40. Nh2
{[%clk 0:00:16.7]} 40... Rc2 {[%clk 0:00:06]} 41. Kg1 {[%clk 0:00:16.9]} 41...
Rc4 {[%clk 0:00:06]} 42. Nf3 {[%clk 0:00:17]} 42... Kf7 {[%clk 0:00:06.1]} 43.
Kf1 {[%clk 0:00:17.4]} 43... Bf6 {[%clk 0:00:06.4]} 44. Ke2 {[%clk 0:00:17.7]}
44... Ra4 {[%clk 0:00:06.7]} 45. Rd2 {[%clk 0:00:17.4]} 45... Ke6 {[%clk
0:00:06.1]} 46. Kd3 {[%clk 0:00:17.6]} 46... Kd5 {[%clk 0:00:06.4]} 47. Rb2
{[%clk 0:00:12.6]} 47... Ra3+ {[%clk 0:00:06.7]} 48. Kd2 {[%clk 0:00:12.8]}
48... Be7 {[%clk 0:00:03.2]} 49. Ne1 {[%clk 0:00:10.9]} 49... Kc4 {[%clk
0:00:02.2]} 50. Nc2 {[%clk 0:00:06.2]} 1-0

[Event "*** Titled Tuesday Blitz"]
[Site "Chess.com"]
[Date "2020.03.03"]
[Round "9"]
[White "superstructure"]
[Black "temus_galaktionov"]
[Result "0-1"]
[WhiteElo "2433"]
[BlackElo "2727"]
[TimeControl "180+1"]
[EndTime "14:47:06 PST"]
[Termination "temus_galaktionov won on time"]

1. e4 {[%clk 0:03:00.9]} 1... c6 {[%clk 0:03:00.9]} 2. Nf3 {[%clk 0:02:59.7]}
2... g6 {[%clk 0:03:01.8]} 3. h3 {[%clk 0:02:56.2]} 3... Bg7 {[%clk 0:03:02.7]}
4. d4 {[%clk 0:02:55.9]} 4... d6 {[%clk 0:03:03.6]} 5. Be2 {[%clk 0:02:55.5]}
5... Nd7 {[%clk 0:03:04.5]} 6. O-O {[%clk 0:02:54.8]} 6... e5 {[%clk 0:03:04.7]}
7. c3 {[%clk 0:02:51.7]} 7... Ngf6 {[%clk 0:03:03.8]} 8. Nbd2 {[%clk 0:02:51.4]}
8... O-O {[%clk 0:03:03.1]} 9. Re1 {[%clk 0:02:51.1]} 9... b6 {[%clk 0:03:01.7]}
10. Qc2 {[%clk 0:02:41.2]} 10... Qc7 {[%clk 0:03:00.6]} 11. Nf1 {[%clk
0:02:01.6]} 11... Bb7 {[%clk 0:02:55.6]} 12. Ng3 {[%clk 0:01:59.1]} 12... Rfe8
{[%clk 0:02:55.3]} 13. dxe5 {[%clk 0:01:46.3]} 13... dxe5 {[%clk 0:02:56.2]} 14.
Bc4 {[%clk 0:01:41.3]} 14... b5 {[%clk 0:02:51.8]} 15. Bb3 {[%clk 0:01:38.5]}
15... Nc5 {[%clk 0:02:50.4]} 16. Bg5 {[%clk 0:01:26.5]} 16... h6 {[%clk
0:02:45.6]} 17. Bxf6 {[%clk 0:01:25.9]} 17... Bxf6 {[%clk 0:02:45.1]} 18. Nf1
{[%clk 0:01:20.9]} 18... a5 {[%clk 0:02:42.3]} 19. a4 {[%clk 0:01:19.6]} 19...
Qb6 {[%clk 0:02:16.6]} 20. Ne3 {[%clk 0:01:15.5]} 20... b4 {[%clk 0:02:13.4]}
21. Bc4 {[%clk 0:01:02.8]} 21... Red8 {[%clk 0:02:09.2]} 22. b3 {[%clk
0:00:57.2]} 22... Rd7 {[%clk 0:01:58.9]} 23. Rad1 {[%clk 0:00:55.9]} 23... Rad8
{[%clk 0:01:58.7]} 24. Rxd7 {[%clk 0:00:53.4]} 24... Rxd7 {[%clk 0:01:59.6]} 25.
Rd1 {[%clk 0:00:53.3]} 25... Rxd1+ {[%clk 0:01:58.2]} 26. Nxd1 {[%clk
0:00:53.2]} 26... Ba6 {[%clk 0:01:50.1]} 27. Ne3 {[%clk 0:00:48.4]} 27... bxc3
{[%clk 0:01:39.4]} 28. Bxa6 {[%clk 0:00:43.7]} 28... Qxa6 {[%clk 0:01:34.2]} 29.
Nc4 {[%clk 0:00:40.6]} 29... Nxa4 {[%clk 0:00:54.3]} 30. Ncxe5 {[%clk
0:00:37.7]} 30... Nc5 {[%clk 0:00:42.3]} 31. Qxc3 {[%clk 0:00:29.7]} 31... Nxe4
{[%clk 0:00:40.6]} 32. Qxc6 {[%clk 0:00:24.7]} 32... Qxc6 {[%clk 0:00:40.5]} 33.
Nxc6 {[%clk 0:00:24.7]} 33... Bc3 {[%clk 0:00:41.4]} 34. Kf1 {[%clk 0:00:13.8]}
34... Nc5 {[%clk 0:00:40.1]} 35. Nfd4 {[%clk 0:00:13.3]} 35... Kf8 {[%clk
0:00:38.3]} 36. Ke2 {[%clk 0:00:13]} 36... Ke8 {[%clk 0:00:38]} 37. Nb5 {[%clk
0:00:11.7]} 37... Bb4 {[%clk 0:00:30.7]} 38. Nxb4 {[%clk 0:00:08]} 38... axb4
{[%clk 0:00:31.6]} 39. Nd4 {[%clk 0:00:04.6]} 39... Kd7 {[%clk 0:00:31.6]} 40.
Kd2 {[%clk 0:00:02.1]} 40... Kd6 {[%clk 0:00:31.4]} 41. Kc2 {[%clk 0:00:02.2]}
41... Kd5 {[%clk 0:00:31.4]} 42. Nb5 {[%clk 0:00:02]} 42... Ne4 {[%clk
0:00:25.2]} 43. f3 {[%clk 0:00:01.3]} 43... Nc5 {[%clk 0:00:24.8]} 44. Nc7+
{[%clk 0:00:01.8]} 44... Kc6 {[%clk 0:00:21.8]} 45. Ne8 {[%clk 0:00:02.7]} 45...
h5 {[%clk 0:00:18.9]} 46. Nf6 {[%clk 0:00:03.1]} 46... Ne6 {[%clk 0:00:17.3]}
47. h4 {[%clk 0:00:03.1]} 47... Nf4 {[%clk 0:00:15.6]} 48. g4 {[%clk 0:00:02.4]}
48... Ng2 {[%clk 0:00:13.1]} 49. gxh5 {[%clk 0:00:02.3]} 49... gxh5 {[%clk
0:00:14]} 50. Nxh5 {[%clk 0:00:02.2]} 50... Nxh4 {[%clk 0:00:14.6]} 51. f4
{[%clk 0:00:01.5]} 51... Kd5 {[%clk 0:00:14.8]} 52. Kd3 {[%clk 0:00:01]} 52...
Ng2 {[%clk 0:00:15]} 0-1

[Event "*** Titled Tuesday Blitz"]
[Site "Chess.com"]
[Date "2020.03.03"]
[Round "9"]
[White "NeverEverForever1990"]
[Black "talman67"]
[Result "1-0"]
[WhiteElo "2372"]
[BlackElo "2501"]
[TimeControl "180+1"]
[EndTime "14:47:14 PST"]
[Termination "NeverEverForever1990 won by checkmate"]

1. e4 {[%clk 0:03:00.9]} 1... e5 {[%clk 0:03:00.1]} 2. Nf3 {[%clk 0:03:01.2]}
2... Nc6 {[%clk 0:03:00.7]} 3. Bb5 {[%clk 0:03:01.9]} 3... a6 {[%clk 0:03:00.5]}
4. Ba4 {[%clk 0:03:02]} 4... Nf6 {[%clk 0:03:00.5]} 5. O-O {[%clk 0:03:01.8]}
5... Nxe4 {[%clk 0:03:00.9]} 6. d4 {[%clk 0:03:00.1]} 6... b5 {[%clk 0:03:00.9]}
7. Bb3 {[%clk 0:03:00.1]} 7... d5 {[%clk 0:03:01.3]} 8. dxe5 {[%clk 0:03:00.2]}
8... Be6 {[%clk 0:03:01.9]} 9. Nbd2 {[%clk 0:02:58.9]} 9... Nc5 {[%clk
0:02:59.8]} 10. c3 {[%clk 0:02:56.2]} 10... d4 {[%clk 0:03:00.2]} 11. Bxe6
{[%clk 0:02:49]} 11... Nxe6 {[%clk 0:03:01.1]} 12. cxd4 {[%clk 0:02:44.6]} 12...
Ncxd4 {[%clk 0:03:02]} 13. Ne4 {[%clk 0:02:44.5]} 13... Qd5 {[%clk 0:02:44.8]}
14. Nc3 {[%clk 0:02:29.9]} 14... Nxf3+ {[%clk 0:02:44.1]} 15. Qxf3 {[%clk
0:02:29.6]} 15... Qxf3 {[%clk 0:02:44.1]} 16. gxf3 {[%clk 0:02:30.5]} 16... Bb4
{[%clk 0:02:32.1]} 17. Nd5 {[%clk 0:02:22.2]} 17... Ba5 {[%clk 0:02:27.4]} 18.
Be3 {[%clk 0:02:15.1]} 18... O-O-O {[%clk 0:02:26.8]} 19. Rfd1 {[%clk
0:02:10.2]} 19... Rd7 {[%clk 0:02:08.8]} 20. Nf4 {[%clk 0:01:52.5]} 20... Rhd8
{[%clk 0:02:03.3]} 21. Rxd7 {[%clk 0:01:51.4]} 21... Rxd7 {[%clk 0:02:02.8]} 22.
Nxe6 {[%clk 0:01:51.8]} 22... fxe6 {[%clk 0:02:03.7]} 23. Kf1 {[%clk 0:01:51.7]}
23... Kb7 {[%clk 0:02:02.5]} 24. Ke2 {[%clk 0:01:52.1]} 24... Bb6 {[%clk
0:02:02.4]} 25. f4 {[%clk 0:01:51.8]} 25... g6 {[%clk 0:02:02]} 26. h4 {[%clk
0:01:50.7]} 26... c5 {[%clk 0:02:00.2]} 27. h5 {[%clk 0:01:50]} 27... c4 {[%clk
0:01:54.3]} 28. hxg6 {[%clk 0:01:43.6]} 28... hxg6 {[%clk 0:01:55.2]} 29. Rg1
{[%clk 0:01:43.6]} 29... Rf7 {[%clk 0:01:55.3]} 30. Rxg6 {[%clk 0:01:42.4]}
30... Re7 {[%clk 0:01:53.8]} 31. f5 {[%clk 0:01:34.2]} 31... Bxe3 {[%clk
0:01:38.8]} 32. f6 {[%clk 0:01:31.6]} 32... Re8 {[%clk 0:01:36.5]} 33. fxe3
{[%clk 0:01:29.6]} 33... Rf8 {[%clk 0:01:28.5]} 34. Kf3 {[%clk 0:01:21.6]} 34...
Kc6 {[%clk 0:01:26.1]} 35. Ke4 {[%clk 0:01:17.6]} 35... b4 {[%clk 0:01:25.7]}
36. Rg7 {[%clk 0:01:08]} 36... c3 {[%clk 0:01:11.8]} 37. bxc3 {[%clk 0:01:04.6]}
37... bxc3 {[%clk 0:01:12.7]} 38. Kd3 {[%clk 0:01:03.4]} 38... Kd5 {[%clk
0:01:13]} 39. Rg5 {[%clk 0:00:56.6]} 39... Rc8 {[%clk 0:01:12.5]} 40. e4+ {[%clk
0:00:56.6]} 40... Kc5 {[%clk 0:00:59.2]} 41. Kxc3 {[%clk 0:00:56.6]} 41... Rh8
{[%clk 0:00:55.9]} 42. f7 {[%clk 0:00:55]} 42... Rf8 {[%clk 0:00:47.9]} 43. Rg7
{[%clk 0:00:48.7]} 43... Kb5 {[%clk 0:00:29.9]} 44. Kd4 {[%clk 0:00:45.2]} 44...
Kb4 {[%clk 0:00:27.9]} 45. a3+ {[%clk 0:00:40]} 45... Kb5 {[%clk 0:00:21.3]} 46.
Rh7 {[%clk 0:00:36.9]} 46... a5 {[%clk 0:00:17.7]} 47. Ke3 {[%clk 0:00:34.8]}
47... Ka4 {[%clk 0:00:11.1]} 48. Kf4 {[%clk 0:00:34.6]} 48... Kxa3 {[%clk
0:00:11.5]} 49. Kg5 {[%clk 0:00:35.1]} 49... Kb4 {[%clk 0:00:06.8]} 50. Kf6
{[%clk 0:00:35.3]} 50... a4 {[%clk 0:00:07]} 51. Kxe6 {[%clk 0:00:33.7]} 51...
a3 {[%clk 0:00:06.6]} 52. Rh2 {[%clk 0:00:32.2]} 52... Kb3 {[%clk 0:00:06.2]}
53. Kf6 {[%clk 0:00:31.2]} 53... a2 {[%clk 0:00:06]} 54. Rxa2 {[%clk 0:00:31.2]}
54... Kxa2 {[%clk 0:00:06.9]} 55. e6 {[%clk 0:00:32.1]} 55... Ra8 {[%clk
0:00:06.4]} 56. e7 {[%clk 0:00:32.3]} 56... Ra3 {[%clk 0:00:06.2]} 57. e5 {[%clk
0:00:31.3]} 57... Rf3+ {[%clk 0:00:07.1]} 58. Ke6 {[%clk 0:00:31.3]} 58... Rc3
{[%clk 0:00:06.2]} 59. f8=Q {[%clk 0:00:32.2]} 59... Rc6+ {[%clk 0:00:06.4]} 60.
Kf5 {[%clk 0:00:32.4]} 60... Rc1 {[%clk 0:00:06.2]} 61. e8=Q {[%clk 0:00:31.8]}
61... Rf1+ {[%clk 0:00:06.2]} 62. Ke6 {[%clk 0:00:32.3]} 62... Re1 {[%clk
0:00:06.3]} 63. Qb4 {[%clk 0:00:29.7]} 63... Rxe5+ {[%clk 0:00:01.9]} 64. Kxe5
{[%clk 0:00:28.9]} 64... Ka1 {[%clk 0:00:01.4]} 65. Qea4# {[%clk 0:00:29.8]} 1-0

[Event "*** Titled Tuesday Blitz"]
[Site "Chess.com"]
[Date "2020.03.03"]
[Round "9"]
[White "GCamachoMartinez"]
[Black "Witik"]
[Result "0-1"]
[WhiteElo "2395"]
[BlackElo "2627"]
[TimeControl "180+1"]
[EndTime "14:47:20 PST"]
[Termination "Witik won on time"]

1. d4 {[%clk 0:03:00.9]} 1... Nf6 {[%clk 0:02:58.4]} 2. c4 {[%clk 0:03:00.2]}
2... g6 {[%clk 0:02:58.6]} 3. Nc3 {[%clk 0:02:59.2]} 3... Bg7 {[%clk 0:02:59.3]}
4. e4 {[%clk 0:02:57.9]} 4... d6 {[%clk 0:02:59.6]} 5. Bd3 {[%clk 0:02:58.2]}
5... O-O {[%clk 0:02:59.6]} 6. Nge2 {[%clk 0:02:58.6]} 6... e5 {[%clk
0:02:57.8]} 7. O-O {[%clk 0:02:57.1]} 7... Nc6 {[%clk 0:02:53.3]} 8. d5 {[%clk
0:02:57.1]} 8... Ne7 {[%clk 0:02:45.8]} 9. Be3 {[%clk 0:02:55.4]} 9... Ng4
{[%clk 0:02:45.2]} 10. Bd2 {[%clk 0:02:51.4]} 10... f5 {[%clk 0:02:44.7]} 11. f3
{[%clk 0:02:51.5]} 11... Nf6 {[%clk 0:02:42.4]} 12. Be3 {[%clk 0:02:50.9]} 12...
f4 {[%clk 0:02:41.6]} 13. Bf2 {[%clk 0:02:50.6]} 13... g5 {[%clk 0:02:41.6]} 14.
g4 {[%clk 0:02:27.9]} 14... h5 {[%clk 0:02:10.3]} 15. h3 {[%clk 0:02:24.8]}
15... hxg4 {[%clk 0:01:59.1]} 16. hxg4 {[%clk 0:02:23.5]} 16... Nxg4 {[%clk
0:02:00]} 17. fxg4 {[%clk 0:02:23.2]} 17... Bxg4 {[%clk 0:02:00.9]} 18. Qd2
{[%clk 0:02:06.7]} 18... Ng6 {[%clk 0:01:59.4]} 19. Nc1 {[%clk 0:02:02.6]} 19...
Bh3 {[%clk 0:01:50.3]} 20. Re1 {[%clk 0:01:56.1]} 20... g4 {[%clk 0:01:50.3]}
21. Bf1 {[%clk 0:01:55]} 21... Qg5 {[%clk 0:01:44]} 22. Bxh3 {[%clk 0:01:47.8]}
22... gxh3+ {[%clk 0:01:42.5]} 23. Kf1 {[%clk 0:01:47.9]} 23... h2 {[%clk
0:01:26.6]} 24. Ke2 {[%clk 0:01:42.7]} 24... Qh5+ {[%clk 0:01:23.1]} 25. Kd3
{[%clk 0:01:40.4]} 25... h1=Q {[%clk 0:01:22.3]} 26. Rxh1 {[%clk 0:01:40]} 26...
Qxh1 {[%clk 0:01:23.2]} 27. Nb3 {[%clk 0:01:37.9]} 27... Qh3+ {[%clk 0:01:15.6]}
28. Kc2 {[%clk 0:01:37.2]} 28... f3 {[%clk 0:01:08.2]} 29. Rg1 {[%clk
0:01:33.1]} 29... Nf4 {[%clk 0:01:06.5]} 30. Rg3 {[%clk 0:01:32.1]} 30... Qh5
{[%clk 0:01:01.3]} 31. Qe3 {[%clk 0:01:21.2]} 31... Ng2 {[%clk 0:00:54.2]} 32.
Qg5 {[%clk 0:01:12.8]} 32... Qxg5 {[%clk 0:00:52.9]} 33. Rxg5 {[%clk 0:01:13.7]}
33... Kh7 {[%clk 0:00:49.1]} 34. Nd2 {[%clk 0:01:12.8]} 34... Bh6 {[%clk
0:00:48.3]} 35. Rh5 {[%clk 0:01:10.3]} 35... Kg6 {[%clk 0:00:47.7]} 36. Rh3
{[%clk 0:01:10.2]} 36... Be3 {[%clk 0:00:37.1]} 37. Nd1 {[%clk 0:01:02.3]} 37...
Bxd2 {[%clk 0:00:19.9]} 38. Kxd2 {[%clk 0:01:00.4]} 38... Rf6 {[%clk 0:00:18.3]}
39. c5 {[%clk 0:00:45.9]} 39... a6 {[%clk 0:00:18.4]} 40. cxd6 {[%clk
0:00:45.1]} 40... cxd6 {[%clk 0:00:19.3]} 41. Be3 {[%clk 0:00:31.3]} 41... Rg8
{[%clk 0:00:17]} 42. Nf2 {[%clk 0:00:30.6]} 42... Kf7 {[%clk 0:00:17.5]} 43.
Rh7+ {[%clk 0:00:25.2]} 43... Rg7 {[%clk 0:00:17.7]} 44. Rh8 {[%clk 0:00:25.4]}
44... Rfg6 {[%clk 0:00:12.6]} 45. Rb8 {[%clk 0:00:22.6]} 45... b5 {[%clk
0:00:12.9]} 46. Rb7+ {[%clk 0:00:19.8]} 46... Kg8 {[%clk 0:00:13.1]} 47. Rb8+
{[%clk 0:00:19.2]} 47... Kh7 {[%clk 0:00:13.6]} 48. Rb6 {[%clk 0:00:18.8]} 48...
Rf6 {[%clk 0:00:12.9]} 49. Rxa6 {[%clk 0:00:17.9]} 49... Nxe3 {[%clk 0:00:13.3]}
50. Kxe3 {[%clk 0:00:16.8]} 50... Rg1 {[%clk 0:00:13.9]} 51. Ra7+ {[%clk
0:00:16.4]} 51... Kg6 {[%clk 0:00:13.8]} 52. Nd3 {[%clk 0:00:11.9]} 52... Rd1
{[%clk 0:00:10.2]} 53. Nf2 {[%clk 0:00:04.2]} 53... Re1+ {[%clk 0:00:10.1]} 54.
Kd3 {[%clk 0:00:04.1]} 54... Re2 {[%clk 0:00:11]} 55. Ng4 {[%clk 0:00:04.2]}
55... f2 {[%clk 0:00:11.1]} 56. Nxf2 {[%clk 0:00:03]} 56... Rexf2 {[%clk
0:00:11.1]} 0-1